lending/lending_fUSD_20251202
["ID","MTS","AMOUNT","RATE_DAILY","PERIOD"]
[395343080,1764635970663,-228.553572,0.0004197,120]
[395343081,1764635970722,-228.553572,0.0004197,120]
[395343082,1764635970780,-228.553572,0.0004197,120]
[395343083,1764635970840,-151.0,0.0004197,120]
[395343084,1764635970896,-228.553572,0.0004197,120]
[395343085,1764635970958,-228.553572,0.0004197,120]
[395343086,1764635971013,-151.0,0.0004197,120]
[395343087,1764635971068,-228.553572,0.0004197,120]
[395343088,1764635971124,-151.0,0.0004197,120]
[395343089,1764635971179,-228.553572,0.0004197,120]
[395343090,1764635971237,-247.015437,0.0004197,120]
[395343091,1764635971293,-228.553572,0.0004197,120]
[395343092,1764635971345,-228.553565,0.0004197,120]
[395343093,1764635971397,-151.0,0.0004197,14]
[395343094,1764635971448,-151.0,0.0004197,14]
[395343095,1764635971496,-151.0,0.0004197,14]
[395343096,1764635971543,-151.0,0.0004197,14]
[395343097,1764635971590,-151.0,0.0004197,14]
[395343098,1764635971639,-177.379633,0.0004197,14]
[395343099,1764635971691,-151.0,0.0004197,120]
[395343100,1764635971737,-151.0,0.0004197,120]
[395343101,1764635971786,-151.0,0.0004197,120]
[395343102,1764635971839,-151.0,0.0004197,120]
[395343103,1764635971894,-151.0,0.0004197,120]
[395343104,1764635971947,-151.0,0.0004197,120]
[395343105,1764635972002,-151.0,0.0004197,120]
[395343106,1764635972057,-151.0,0.0004197,120]
[395343107,1764635972111,-276.322266,0.0004197,120]
[395343108,1764635972170,-151.0,0.0004197,120]
[395343109,1764635972227,-151.0,0.0004197,120]
[395343110,1764635972283,-151.0,0.0004197,120]
[395343111,1764635972337,-151.0,0.0004197,120]
[395343112,1764635972389,-151.0,0.0004197,120]
[395343113,1764635972439,-151.0,0.0004197,120]
[395343114,1764635972489,-151.0,0.0004197,120]
[395343115,1764635972538,-175.062456,0.0004197,120]
[395343116,1764635972589,-151.0,0.0004197,120]
[395343117,1764635973123,-151.0,0.0004197,120]
[395343118,1764635973182,-151.0,0.0004197,120]
[395343119,1764635973236,-151.0,0.0004197,120]
[395343120,1764635973292,-151.0,0.0004197,120]
[395343121,1764635973352,-151.0,0.0004197,120]
[395343122,1764635973406,-151.0,0.0004197,120]
[395343123,1764635973462,-151.0,0.0004197,120]
[395343124,1764635973514,-151.0,0.0004197,120]
[395343125,1764635973564,-151.0,0.0004197,120]
[395343126,1764635973616,-250.359066,0.0004197,120]
[395343127,1764635973669,-170.331495,0.0004197,120]
[395343128,1764635973728,-170.331495,0.0004197,120]
[395343129,1764635973785,-292.163304,0.0004197,120]
[395343130,1764635973839,-170.331495,0.0004197,120]
[395343131,1764635973896,-292.163304,0.0004197,120]
[395343132,1764635973950,-170.331495,0.0004197,120]
[395343133,1764635974003,-292.163304,0.0004197,120]
[395343134,1764635974052,-170.331495,0.0004197,120]
[395343135,1764635974105,-292.163304,0.0004197,120]
[395343136,1764635974166,-170.331495,0.0004197,120]
[395343137,1764635974222,-292.163304,0.0004197,120]
[395343138,1764635974281,-170.331495,0.0004197,120]
[395343139,1764635974339,-292.163304,0.0004197,120]
[395343140,1764635974400,-170.331495,0.0004197,120]
[395343141,1764635974459,-170.331495,0.0004197,120]
[395343142,1764635974513,-292.163304,0.0004197,120]
[395343143,1764635974568,-170.331495,0.0004197,120]
[395343144,1764635974625,-292.163304,0.0004197,120]
[395343145,1764635974682,-170.331495,0.0004197,120]
[395343146,1764635974738,-292.163304,0.0004197,120]
[395343147,1764635974793,-170.331495,0.0004197,120]
[395343148,1764635974850,-292.163304,0.0004197,120]
[395343149,1764635974903,-170.331495,0.0004197,120]
[395343150,1764635974962,-292.163304,0.0004197,120]
[395343151,1764635975014,-170.331495,0.0004197,120]
[395343152,1764635975067,-292.163304,0.0004197,120]
[395343153,1764635975120,-170.331495,0.0004197,120]
[395343154,1764635975175,-292.163304,0.0004197,120]
[395343155,1764635975237,-170.331495,0.0004197,120]
[395343156,1764635975300,-156.005857,0.0004197,120]
[395343157,1764635975360,-292.163304,0.0004197,120]
[395343158,1764635975423,-170.331495,0.0004197,120]
[395343159,1764635975487,-292.163304,0.0004197,120]
[395343160,1764635975551,-170.331495,0.0004197,120]
[395343161,1764635975619,-292.163304,0.0004197,120]
[395343162,1764635975682,-170.331495,0.0004197,120]
[395343163,1764635975745,-292.163304,0.0004197,120]
[395343164,1764635975810,-170.331487,0.0004197,120]
[395343165,1764635975876,-292.163304,0.0004197,120]
[395343166,1764635975944,-292.163304,0.0004197,120]
[395343167,1764635976012,-292.16331,0.0004197,120]
[395343168,1764635976083,-151.0,0.0004197,28]
[395343169,1764635976150,-151.0,0.0004197,28]
[395343170,1764635976217,-151.0,0.0004197,28]
[395343171,1764635976286,-151.0,0.0004197,28]
[395343172,1764635976358,-153.598608,0.0004197,28]
[395343173,1764635976426,-151.0,0.0004197,120]
[395343174,1764635976494,-160.880663,0.0004197,120]
[395343175,1764635976562,-340.405148,0.0004197,120]
[395343176,1764635976634,-340.405148,0.0004197,120]
[395343177,1764635976706,-340.405148,0.0004197,120]
[395343178,1764635976795,-340.405148,0.0004197,120]
[395343179,1764635976877,-340.405148,0.0004197,120]
[395343180,1764635976960,-340.405148,0.0004197,120]
[395343181,1764635977038,-340.405148,0.0004197,120]
[395343182,1764635977124,-340.405148,0.0004197,120]
[395343183,1764635977209,-340.405148,0.0004197,120]
[395343184,1764635977285,-340.405148,0.0004197,120]
[395343185,1764635977361,-340.405148,0.0004197,120]
[395343186,1764635977434,-340.405148,0.0004197,120]
[395343187,1764635977506,-340.405148,0.0004197,120]
[395343188,1764635977579,-340.405148,0.0004197,120]
[395343189,1764635977664,-340.405148,0.0004197,120]
[395343190,1764635977736,-340.405148,0.0004197,120]
[395343191,1764635977808,-340.405148,0.0004197,120]
[395343192,1764635977896,-340.405148,0.0004197,120]
[395343193,1764635977981,-340.405148,0.0004197,120]
[395343194,1764635978068,-340.405148,0.0004197,120]
[395343195,1764635978165,-444.315,0.00042082,60]
[395343196,1764635978257,-239.84119403,0.00042097,30]
[395343197,1764635978349,-3029.48,0.000421,14]
[395343198,1764635978437,-231.28369723,0.00042105,30]
[395343199,1764635978526,-198.0,0.00042107,30]
[395343200,1764635978613,-1097.0,0.00042117,30]
[395343201,1764635978688,-685.0,0.0004217,30]
[395343202,1764635978765,-223.0315306,0.00042191,30]
[395343203,1764635978840,-967.55988776,0.00042232,22]
[395343204,1764635978912,-198.0,0.00042518,30]
[395343205,1764635978988,-685.0,0.00042596,30]
[395343206,1764635979066,-1319.09,0.000426,14]
[395343207,1764635979141,-967.55988776,0.00042663,22]
[395343208,1764635979213,-300.0,0.00042738,22]
[395343209,1764635979303,-500.0,0.00042739,120]
[395343210,1764635979392,-888.63,0.00042904,61]
[395343211,1764635979482,-198.0,0.00042929,30]
[395343212,1764635979572,-221.675205,0.00042999,120]
[395343213,1764635979661,-500.0,0.00042999,60]
[395343214,1764635979750,-683.58,0.00043,14]
[395343215,1764635979837,-1840.94,0.00043,30]
[395343216,1764635979925,-1000.0,0.00043,120]
[395343217,1764635980014,-685.0,0.00043022,30]
[395343218,1764635980090,-967.55988776,0.00043095,22]
[395343219,1764635980177,-198.0,0.0004334,30]
[395343220,1764635980633,-685.0,0.00043448,30]
[395343221,1764635980729,-967.55988776,0.00043526,22]
[395343222,1764635980818,-500.0,0.00043561,120]
[395343223,1764635980908,-1332.945,0.00043726,62]
[395343224,1764635980999,-198.0,0.00043751,30]
[395343225,1764635981089,-685.0,0.00043874,30]
[395343226,1764635981177,-967.55988776,0.00043958,22]
[395343227,1764635981265,-198.0,0.00044162,30]
[395343228,1764635981353,-1319.09,0.000443,14]
[395343229,1764635981439,-1097.0,0.00044334,30]
[395343230,1764635981528,-500.0,0.00044383,120]
[395343231,1764635981614,-967.55988776,0.00044389,22]
[395343232,1764635981698,-450.0,0.000445,120]
[395343233,1764635981785,-1777.26,0.00044547,120]
[395343234,1764635981876,-967.55988776,0.00044821,22]
[395343235,1764635981968,-606.77688638,0.00045,10]
[395343236,1764635982058,-731.23261535,0.00045,14]
[395343237,1764635982151,-2421.88465939,0.00045,14]
[395343238,1764635982238,-20000.0,0.00045,120]
[395343239,1764635982326,-475.77832822,0.00045,120]
[395343240,1764635982418,-1319.09,0.000451,14]
[395343241,1764635982507,-500.0,0.00045205,120]
[395343242,1764635982594,-967.55988776,0.00045253,22]
[395343243,1764635982681,-2221.575,0.00045369,120]
[395343244,1764635982767,-198.0,0.00045532,30]
[395343245,1764635982853,-967.55988776,0.00045684,22]
[395343246,1764635982940,-500.0,0.00046027,120]
[395343247,1764635983025,-967.55988775,0.00046116,22]
[395343248,1764635983112,-2665.89,0.00046191,120]
[395343249,1764635983186,-215.0738,0.00046499,30]
[395343250,1764635983254,-967.55988775,0.00046547,22]
[395343251,1764635983323,-1097.0,0.00046667,30]
[395343252,1764635983391,-500.0,0.00046849,120]
[395343253,1764635983459,-198.0,0.00046902,30]
[395343254,1764635983527,-967.55988775,0.00046979,22]
[395343255,1764635983595,-3029.48,0.00047,14]
[395343256,1764635983659,-3110.205,0.00047013,120]
[395343257,1764635983722,-967.55988775,0.00047411,22]
[395343258,1764635983784,-620.37570697,0.00047671,120]
[395343259,1764635983844,-3554.52,0.00047835,120]
[395343260,1764635983903,-967.55988775,0.00047842,22]
[395343261,1764635983960,-200.0,0.00047898,13]
[395343262,1764635984016,-200.0,0.00047898,13]
[395343263,1764635984074,-200.0,0.00047898,13]
[395343264,1764635984132,-200.0,0.00047898,13]
[395343265,1764635984191,-200.0,0.00047898,13]
[395343266,1764635984248,-200.0,0.00047898,13]
[395343267,1764635984304,-200.0,0.00047898,13]
[395343268,1764635984362,-200.0,0.00047898,13]
[395343269,1764635984417,-200.0,0.00047898,13]
[395343270,1764635984472,-200.0,0.00047898,13]
[395343271,1764635984525,-1319.09,0.00048,14]
[395343272,1764635984579,-198.0,0.00048272,30]
[395343273,1764635984635,-967.55988775,0.00048274,22]
[395343274,1764635984688,-450.0,0.000485,120]
[395343275,1764635984741,-3998.835,0.00048657,120]
[395343276,1764635984792,-967.55988775,0.00048705,22]
[395343277,1764635984843,-499.49700005,0.00049,120]
[395343278,1764635984893,-500.0,0.00049015,120]
[395343279,1764635984942,-154.01392141,0.00049015,120]
[395343280,1764635984990,-1097.0,0.00049123,30]
[395343281,1764635985038,-967.55988775,0.00049137,22]
[395343282,1764635985088,-500.0,0.00049152,120]
[395343283,1764635985141,-1199.9,0.00049214,120]
[395343284,1764635985193,-301.74969998,0.00049289,120]
[395343285,1764635985244,-1587.22296764,0.00049315,120]
[395343286,1764635987432,500.0,0.00049015,10]
[395343287,1764635987491,500.0,0.00049015,10]
[395343288,1764635987550,557.24760214,0.00049015,10]
[395343289,1764635987618,206.08772896,0.00049015,10]
[395343290,1764635988188,200.0,0.000409,20]
[395343291,1764635988254,364.363139,0.000389,17]
[395343292,1764635989355,-135186.96424221,0.00041291,21]
[395343293,1764635993351,-4443.15,0.00049479,120]
[395343294,1764635993412,-2208.71397384,0.000499,10]
[395343295,1764635993471,-5515.94537423,0.0004999,14]
[395343296,1764635993532,-183.64728976,0.00049999,120]
[395343297,1764635993591,-288.45882332,0.00049999,120]
[395343298,1764635993656,-500.0,0.00049999,120]
[395343299,1764635993713,-631.73513243,0.00049999,120]
[395343300,1764635993775,-317.34318179,0.00049999,120]
[395343301,1764635993833,-161.42350233,0.00049999,120]
[395343302,1764635993892,-259.12448981,0.00049999,120]
[395343303,1764635993948,-600.0,0.0005,14]
[395343304,1764635994000,-1000.0,0.0005,15]
[395343305,1764635994051,-4595.19507294,0.0005,14]
[395343306,1764635994105,-500.0,0.0005,120]
[395343307,1764635994159,-1342.9,0.00050098,120]
[395343308,1764635994215,-4887.465,0.00050301,120]
[395343309,1764635994272,-1342.9,0.00050983,120]
[395343310,1764635994328,-5331.78,0.00051123,120]
[395343311,1764635994382,-146863.2801588,0.00051524,120]
[395343312,1764635994435,-1097.0,0.00051708,30]
[395343313,1764635994489,-532.69810248,0.0005193,120]
[395343314,1764635994542,-307.81522489,0.0005193,120]
[395343315,1764635994600,-688.13,0.0005193,120]
[395343316,1764635994657,-5776.095,0.00051945,120]
[395343317,1764635994712,-207.4,0.00052179,30]
[395343318,1764635994771,-1259.05285161,0.000525,120]
[395343319,1764635994826,-909.0,0.0005258,120]
[395343320,1764635994881,-500.0,0.00052656,60]
[395343321,1764635994935,-500.0,0.00052656,60]
[395343322,1764635994991,-600.0,0.00052656,60]
[395343323,1764635995047,-500.0,0.00052679,68]
[395343324,1764635995105,-1000.0,0.00052679,68]
[395343325,1764635995161,-500.0,0.00052679,68]
[395343326,1764635995219,-151.0,0.00052679,68]
[395343327,1764635995277,-2221.59749944,0.00052767,120]
[395343328,1764635995336,-500.0,0.00052999,90]
[395343329,1764635995398,-1000.0,0.00052999,90]
[395343330,1764635995454,-500.0,0.00052999,90]
[395343331,1764635995507,-151.0,0.00052999,90]
[395343332,1764635995563,-600.0,0.00053204,60]
[395343333,1764635995618,-590.71993735,0.0005342,60]
[395343334,1764635995681,-500.0,0.0005342,30]
[395343335,1764635995741,-180.0,0.00053425,10]
[395343336,1764635995812,-500.0,0.00053689,71]
[395343337,1764635995876,-1000.0,0.00053689,71]
[395343338,1764635995946,-500.0,0.00053689,71]
[395343339,1764635996016,-151.0,0.00053689,71]
[395343340,1764635996084,-1601.02,0.0005375,120]
[395343341,1764635996152,-1565.33,0.0005375,120]
[395343342,1764635996219,-324.9568906,0.0005375,120]
[395343343,1764635996277,-500.0,0.00053752,60]
[395343344,1764635996338,-500.0,0.00053752,60]
[395343345,1764635996398,-600.0,0.00053752,60]
[395343346,1764635996456,-1500.0,0.00053946,120]
[395343347,1764635996513,-1500.0,0.00053946,120]
[395343348,1764635996576,-1500.0,0.00053946,120]
[395343349,1764635996632,-1500.0,0.00053946,120]
[395343350,1764635996686,-500.0,0.00053977,88]
[395343351,1764635996742,-1000.0,0.00053977,88]
[395343352,1764635996799,-500.0,0.00053977,88]
[395343353,1764635996857,-151.0,0.00053977,88]
[395343354,1764635996911,-2000.0,0.00054,120]
[395343355,1764635996965,-1840.94,0.00054,30]
[395343356,1764635997025,-579.0008274,0.0005418,120]
[395343357,1764635997085,-300.0,0.0005418,120]
[395343358,1764635997147,-500.0,0.00054246,60]
[395343359,1764635997211,-1000.0,0.00054246,60]
[395343360,1764635997280,-500.0,0.00054246,60]
[395343361,1764635997348,-151.0,0.00054246,60]
[395343362,1764635997418,-20015.62453849,0.0005428,120]
[395343363,1764635997483,-500.0,0.00054299,30]
[395343364,1764635997547,-1000.0,0.00054299,30]
[395343365,1764635997612,-200.0,0.00054299,30]
[395343366,1764635997679,-500.0,0.00054299,30]
[395343367,1764635997744,-151.0,0.00054299,30]
[395343368,1764635997809,-600.0,0.000543,60]
[395343369,1764635997866,-157.32,0.000543,120]
[395343370,1764635997921,-567.0,0.000543,76]
[395343371,1764635997974,-500.0,0.00054319,65]
[395343372,1764635998022,-1000.0,0.00054319,65]
[395343373,1764635998070,-500.0,0.00054319,65]
[395343374,1764635998121,-151.0,0.00054319,65]
[395343375,1764635998170,-1000.0,0.00054429,120]
[395343376,1764635998220,-500.0,0.00054429,120]
[395343377,1764635998272,-1000.0,0.00054429,120]
[395343378,1764635998323,-151.0,0.00054429,120]
[395343379,1764635998377,-500.0,0.00054429,120]
[395343380,1764635998431,-151.0,0.00054429,120]
[395343381,1764635998483,-1097.0,0.0005443,30]
[395343382,1764635998536,-1000.0,0.00054443,120]
[395343383,1764635998590,-147549.27650494,0.0005448,120]
[395343384,1764635998644,-202145.34644157,0.0005448,120]
[395343385,1764635998698,-177.0,0.000547,120]
[395343386,1764635998759,-1000.0,0.00054745,120]
[395343387,1764635998819,-1000.0,0.00054751,120]
[395343388,1764635998875,-1000.0,0.00054756,120]
[395343389,1764635998927,-1000.0,0.00054762,120]
[395343390,1764635998976,-1000.0,0.00054767,120]
[395343391,1764635999025,-1000.0,0.00054773,120]
[395343392,1764635999073,-1000.0,0.00054778,120]
[395343393,1764635999125,-1000.0,0.00054784,120]
[395343394,1764635999180,-1000.0,0.00054789,120]
[395343395,1764635999236,-1000.0,0.00054795,120]
[395343396,1764636001615,3249691.64993977,0.0005443,120]
[395343397,1764636026111,-500.0,0.0004,30]
[395343398,1764636030135,-691.09,0.00041954,30]
[395343399,1764636030200,-198.0,0.00043888,30]
[395343400,1764636030261,-198.0,0.00045258,30]
[395343401,1764636030322,-198.0,0.00046628,30]
[395343402,1764636030386,-198.0,0.00047998,30]
[395343403,1764636030449,-198.0,0.00049367,30]
[395343404,1764636030512,-198.0,0.00050737,30]
[395343405,1764636030576,-198.0,0.00052107,30]
[395343406,1764636030638,-198.0,0.00053477,30]
[395343407,1764636030701,-1000.0,0.00054429,30]
[395343408,1764636030762,-1250.0,0.0005443,30]
[395343409,1764636030824,-1000.0,0.00054794,120]
[395343410,1764636030885,-150.0,0.00054794,120]
[395343411,1764636030944,-500.0,0.00054795,120]
[395343412,1764636031003,-500.0,0.00054795,120]
[395343413,1764636031063,-500.0,0.00054795,120]
[395343414,1764636031121,-500.0,0.00054795,120]
[395343415,1764636031180,-500.0,0.00054795,120]
[395343416,1764636031238,-500.0,0.00054795,120]
[395343417,1764636031298,-553.66284276,0.00054795,120]
[395343418,1764636031358,-400.0,0.000548,120]
[395343419,1764636031420,-152.0,0.000548,120]
[395343420,1764636031481,-6219.67891209,0.000548,120]
[395343421,1764636031540,-567.0,0.000548,78]
[395343422,1764636031601,-198.0,0.00054847,30]
[395343423,1764636031661,-487.2271966,0.00054848,120]
[395343424,1764636031720,-500.0,0.00054848,120]
[395343425,1764636031779,-600.0,0.00054848,120]
[395343426,1764636031838,-940.00095491,0.00054856,120]
[395343427,1764636031897,-151.80383811,0.000549,120]
[395343428,1764636031956,-6401.37435258,0.000549,30]
[395343429,1764636032015,-637.04258725,0.00054945,120]
[395343430,1764636032072,-261.34006497,0.00054945,120]
[395343431,1764636032132,-1000.0,0.00054999,30]
[395343432,1764636032190,-500.0,0.00055,30]
[395343433,1764636032243,-200.0,0.00055,120]
[395343434,1764636032299,-214.81696056,0.00055,120]
[395343435,1764636032357,-160.37908057,0.00055,120]
[395343436,1764636032416,-150.0,0.00055,120]
[395343437,1764636032476,-1000.0,0.00055,120]
[395343438,1764636032537,-533.69,0.00055,90]
[395343439,1764636032594,-150.0,0.00055,60]
[395343440,1764636032652,-7000.0,0.00055,60]
[395343441,1764636032711,-243.90126341,0.00055,120]
[395343442,1764636032769,-998.45949114,0.00055,120]
[395343443,1764636032827,-189.0,0.00055,60]
[395343444,1764636032885,-281.48821475,0.00055,120]
[395343445,1764636032946,-402.71504754,0.00055,120]
[395343446,1764636032998,-2038.25803049,0.00055,30]
[395343447,1764636033054,-762.23809153,0.00055,120]
[395343448,1764636033114,-175.933902,0.00055,100]
[395343449,1764636033174,-3603.83507249,0.00055,120]
[395343450,1764636033232,-171.57222511,0.00055,120]
[395343451,1764636033292,-5000.0,0.000552,120]
[395343452,1764636033352,-177.0,0.000552,120]
[395343453,1764636033413,-4000.0,0.00055243,120]
[395343454,1764636033473,-567.0,0.000553,80]
[395343455,1764636033533,-600.0,0.00055396,120]
[395343456,1764636033591,-152.0,0.000554,120]
[395343457,1764636033654,-3942483.49187114,0.000555,120]
[395343458,1764636046342,-712.67,0.00041026,30]
[395343459,1764636046404,-290.14554199,0.00041954,31]
[395343460,1764636050705,-161.0,0.00053,120]
[395343461,1764636050784,-151941.36323923,0.00054369,30]
[395343462,1764636050849,-1057516.50812886,0.000555,120]
[395343463,1764636050908,-177.0,0.000556,120]
[395343464,1764636050966,-567.0,0.000558,82]
[395343465,1764636051024,-152.0,0.000559,120]
[395343466,1764636051083,-319.37495476,0.00055944,120]
[395343467,1764636051142,-1000.0,0.0005598,30]
[395343468,1764636051210,-150.0,0.00056,120]
[395343469,1764636051269,-1000.0,0.00056,120]
[395343470,1764636051330,-200.0,0.00056,120]
[395343471,1764636051390,-683.58,0.00056,30]
[395343472,1764636051448,-171.57222511,0.00056,120]
[395343473,1764636051505,-5069.31769871,0.00056,120]
[395343474,1764636051564,-177.0,0.000561,120]
[395343475,1764636051623,-5000.0,0.000562,120]
[395343476,1764636051680,-12527.74552339,0.00056332,120]
[395343477,1764636051737,-152.0,0.000564,120]
[395343478,1764636051798,-4000.0,0.00056423,120]
[395343479,1764636051856,-450.0,0.00056436,120]
[395343480,1764636051914,-600.0,0.00056492,120]
[395343481,1764636051969,-557.0,0.000566,120]
[395343482,1764636052023,-788.0,0.000566,120]
[395343483,1764636052087,-177.0,0.000566,120]
[395343484,1764636052147,-2018.0,0.0005687,61]
[395343485,1764636052207,-1000.0,0.000569,30]
[395343486,1764636052265,-1000.0,0.0005698,30]
[395343487,1764636052323,-1000.0,0.00056999,120]
[395343488,1764636052382,-150.0,0.00057,120]
[395343489,1764636052438,-1000.0,0.00057,120]
[395343490,1764636052494,-152.0,0.00057,120]
[395343491,1764636052551,-1319.09,0.00057,30]
[395343492,1764636052615,-171.57222511,0.00057,120]
[395343493,1764636052675,-177.0,0.000571,120]
[395343494,1764636052735,-1097.0,0.00057151,120]
[395343495,1764636052797,-152.0,0.000575,120]
[395343496,1764636052860,-520.999999,0.000575,120]
[395343497,1764636052920,-192.4,0.00057534,120]
[395343498,1764636052980,-600.0,0.00057588,120]
[395343499,1764636053040,-177.0,0.000576,120]
[395343500,1764636053102,-1000.0,0.0005798,30]
[395343501,1764636053166,-1000.0,0.0005798,30]
[395343502,1764636053228,-1000.0,0.0005798,30]
[395343503,1764636053295,-1000.0,0.00057989,30]
[395343504,1764636053365,-150000.0,0.0005799,31]
[395343505,1764636053432,-150.0,0.00058,120]
[395343506,1764636053497,-1000.0,0.00058,120]
[395343507,1764636053569,-300.0,0.00058,120]
[395343508,1764636053638,-170.68,0.00058,120]
[395343509,1764636053705,-171.57222511,0.00058,120]
[395343510,1764636053770,-152.0,0.000581,120]
[395343511,1764636053834,-177.0,0.000581,120]
[395343512,1764636053894,-1000.0,0.0005845,120]
[395343513,1764636053957,-2000.0,0.0005845,61]
[395343514,1764636054019,-4000.0,0.00058464,120]
[395343515,1764636054085,-1000.0,0.00058499,30]
[395343516,1764636054150,-152.0,0.000586,120]
[395343517,1764636054220,-177.0,0.000586,120]
[395343518,1764636054283,-600.0,0.00058684,120]
[395343519,1764636054349,-1000.0,0.000589,30]
[395343520,1764636054414,-1000.0,0.0005899,30]
[395343521,1764636054478,-792.46930745,0.00059,30]
[395343522,1764636054539,-1000.0,0.00059,120]
[395343523,1764636054603,-1500.66398952,0.00059,120]
[395343524,1764636054667,-21974.71981752,0.00059,120]
[395343525,1764636054729,-177.0,0.00059,120]
[395343526,1764636054792,-171.57222511,0.00059,120]
[395343527,1764636054856,-152.0,0.000591,120]
[395343528,1764636054918,-2000.0,0.0005935,71]
[395343529,1764636054979,-177.0,0.000595,120]
[395343530,1764636055041,-152.0,0.000597,120]
[395343531,1764636055106,-600.0,0.0005978,120]
[395343532,1764636055166,-1000.0,0.000599,30]
[395343533,1764636055228,-1000.0,0.00059999,120]
[395343534,1764636055294,-50000.0,0.0006,60]
[395343535,1764636055362,-2088.40995492,0.0006,35]
[395343536,1764636055425,-500.0,0.0006,30]
[395343537,1764636055488,-200.0,0.0006,120]
[395343538,1764636055555,-486.83366899,0.0006,120]
[395343539,1764636055618,-1500.0,0.0006,120]
[395343540,1764636055681,-150.0,0.0006,60]
[395343541,1764636055743,-2363.29975199,0.0006,120]
[395343542,1764636055809,-150.0,0.0006,120]
[395343543,1764636055870,-109460.50840019,0.0006,120]
[395343544,1764636055932,-15093.1209645,0.0006,120]
[395343545,1764636055998,-10804.09370281,0.0006,120]
[395343546,1764636056061,-45967.98170235,0.0006,120]
[395343547,1764636056124,-568.51406479,0.0006,120]
[395343548,1764636056187,-555.0385654,0.0006,120]
[395343549,1764636056247,-30000.0,0.0006,120]
[395343550,1764636056309,-30000.0,0.0006,120]
[395343551,1764636056374,-10000.0,0.0006,120]
[395343552,1764636056437,-1000.0,0.0006,30]
[395343553,1764636056500,-549.9173734,0.0006,120]
[395343554,1764636056564,-1000.0,0.0006,120]
[395343555,1764636056624,-18367.77880375,0.0006,120]
[395343556,1764636056686,-177.0,0.0006,120]
[395343557,1764636056750,-171.57222511,0.0006,120]
[395343558,1764636056817,-1097.0,0.00060009,120]
[395343559,1764636056880,-152.0,0.000602,120]
[395343560,1764636056941,-2214581.91372093,0.00060264,120]
[395343561,1764636078698,-690.16,0.00041954,30]
[395343562,1764636078766,-161.0,0.00048,120]
[395343563,1764636078824,-161.0,0.00051,120]
[395343564,1764636078885,-909.0,0.0005258,120]
[395343565,1764636078941,-50605.0,0.00054,30]
[395343566,1764636078998,-1801.91753625,0.00055,120]
[395343567,1764636079059,-161.0,0.0006,120]
[395343568,1764636079117,-1785418.08627907,0.00060264,120]
[395343569,1764636079175,-1466103.2759029,0.00060264,120]
[395343570,1764636079234,-693989.56028178,0.00060264,120]
[395343571,1764636096642,-690.31,0.00041954,30]
[395343572,1764636096711,-161.0,0.00058,120]
[395343573,1764636096770,-49478.50374596,0.00058,120]
[395343574,1764636096827,-500.0,0.00060263,120]
[395343575,1764636096888,-319.74896608,0.00060264,120]
[395343576,1764636096946,-754.27618784,0.00060264,120]
[395343577,1764636097002,-1788.28,0.00060274,120]
[395343578,1764636097060,-4000.0,0.00060486,120]
[395343579,1764636097118,-177.0,0.000605,120]